[Event "*** Titled Tuesday Blitz"]
[Site "Chess.com"]
[Date "2021.03.09"]
[Round "9"]
[White "CSB7"]
[Black "marianokar"]
[Result "1-0"]
[WhiteElo "2606"]
[BlackElo "2489"]
[TimeControl "180+1"]
[EndTime "11:50:45 PST"]
[Termination "CSB7 won by resignation"]

1. d4 {[%clk 0:03:00.9]} 1... Nf6 {[%clk 0:02:58.4]} 2. Bf4 {[%clk 0:03:00.5]}
2... c5 {[%clk 0:02:58.1]} 3. d5 {[%clk 0:02:57.3]} 3... d6 {[%clk 0:02:48.6]}
4. Nc3 {[%clk 0:02:56.3]} 4... g6 {[%clk 0:02:49.1]} 5. e4 {[%clk 0:02:54.4]}
5... Bg7 {[%clk 0:02:49.7]} 6. Qd2 {[%clk 0:02:54.8]} 6... h5 {[%clk 0:02:43.8]}
7. f3 {[%clk 0:02:49.4]} 7... Na6 {[%clk 0:02:36.5]} 8. O-O-O {[%clk 0:02:13.7]}
8... Nc7 {[%clk 0:02:35.7]} 9. h4 {[%clk 0:02:02.5]} 9... b5 {[%clk 0:01:55.9]}
10. Nxb5 {[%clk 0:01:47]} 10... Nxb5 {[%clk 0:01:55.5]} 11. Bxb5+ {[%clk
0:01:46.4]} 11... Bd7 {[%clk 0:01:56.4]} 12. Bc4 {[%clk 0:01:36.3]} 12... Rb8
{[%clk 0:01:53.2]} 13. c3 {[%clk 0:01:22]} 13... O-O {[%clk 0:01:46.4]} 14. Bh6
{[%clk 0:01:11.7]} 14... Qa5 {[%clk 0:01:42.9]} 15. g4 {[%clk 0:01:02.3]} 15...
Bb5 {[%clk 0:01:21.6]} 16. Bxb5 {[%clk 0:00:44.4]} 16... Rxb5 {[%clk 0:01:22.5]}
17. Bxg7 {[%clk 0:00:44.1]} 17... Qxa2 {[%clk 0:01:06.5]} 18. b4 {[%clk
0:00:25.6]} 18... Qa1+ {[%clk 0:01:01.6]} 19. Kc2 {[%clk 0:00:25.7]} 19... Qa4+
{[%clk 0:00:55.6]} 20. Kd3 {[%clk 0:00:25.7]} 20... Kxg7 {[%clk 0:00:54.4]} 21.
Ne2 {[%clk 0:00:20]} 21... cxb4 {[%clk 0:00:53.8]} 22. Ra1 {[%clk 0:00:17]}
22... bxc3 {[%clk 0:00:49.3]} 23. Qxc3 {[%clk 0:00:10.3]} 23... Qb3 {[%clk
0:00:46.3]} 24. g5 {[%clk 0:00:10.4]} 24... Rc8 {[%clk 0:00:40.5]} 25. gxf6+
{[%clk 0:00:10.4]} 25... exf6 {[%clk 0:00:40.9]} 26. Qxb3 {[%clk 0:00:10.4]}
26... Rxb3+ {[%clk 0:00:41.8]} 27. Kd2 {[%clk 0:00:10.4]} 27... Rb2+ {[%clk
0:00:38]} 28. Ke3 {[%clk 0:00:10.8]} 28... Rcc2 {[%clk 0:00:34.6]} 29. Rhe1
{[%clk 0:00:09.8]} 29... Rc7 {[%clk 0:00:23.5]} 30. Reb1 {[%clk 0:00:06.4]}
30... Rbc2 {[%clk 0:00:19.8]} 31. Rc1 {[%clk 0:00:06.9]} 31... Rxc1 {[%clk
0:00:18]} 32. Nxc1 {[%clk 0:00:07.8]} 32... Rc3+ {[%clk 0:00:16.4]} 33. Nd3
{[%clk 0:00:08]} 33... Rc7 {[%clk 0:00:16]} 34. Nb4 {[%clk 0:00:08.4]} 34...
Rc3+ {[%clk 0:00:16.2]} 35. Kf2 {[%clk 0:00:07.6]} 35... f5 {[%clk 0:00:15.2]}
36. exf5 {[%clk 0:00:07.3]} 36... gxf5 {[%clk 0:00:16.1]} 37. Rxa7 {[%clk
0:00:07.6]} 37... Rc4 {[%clk 0:00:16.2]} 38. Nc6 {[%clk 0:00:06.9]} 38... Rxh4
{[%clk 0:00:16.7]} 39. Nd8 {[%clk 0:00:07.2]} 39... Kg6 {[%clk 0:00:13.1]} 40.
Nxf7 {[%clk 0:00:06.5]} 40... Rd4 {[%clk 0:00:12.7]} 41. Nxd6 {[%clk 0:00:03.1]}
41... Rxd5 {[%clk 0:00:13.1]} 42. Nc4 {[%clk 0:00:03.5]} 42... f4 {[%clk
0:00:12.6]} 43. Ra6+ {[%clk 0:00:03.1]} 43... Kf5 {[%clk 0:00:11.9]} 44. Ke2
{[%clk 0:00:02.2]} 44... Rc5 {[%clk 0:00:10.2]} 45. Nd2 {[%clk 0:00:02.4]} 45...
Rc3 {[%clk 0:00:07.4]} 46. Ra5+ {[%clk 0:00:02.4]} 46... Kg6 {[%clk 0:00:07.4]}
47. Ne4 {[%clk 0:00:02.9]} 47... Re3+ {[%clk 0:00:07.1]} 48. Kf2 {[%clk
0:00:03.2]} 48... Rb3 {[%clk 0:00:07.6]} 49. Rg5+ {[%clk 0:00:03]} 49... Kh6
{[%clk 0:00:07.9]} 50. Rf5 {[%clk 0:00:03.6]} 50... Rb2+ {[%clk 0:00:08.3]} 51.
Kg1 {[%clk 0:00:04]} 51... h4 {[%clk 0:00:06.7]} 52. Rxf4 {[%clk 0:00:04]} 52...
h3 {[%clk 0:00:07.2]} 53. Rh4+ {[%clk 0:00:03.8]} 53... Kg6 {[%clk 0:00:07.2]}
54. Rxh3 {[%clk 0:00:04.7]} 54... Kf5 {[%clk 0:00:08.1]} 55. Nf2 {[%clk
0:00:04.1]} 55... Kf4 {[%clk 0:00:07.8]} 56. Kg2 {[%clk 0:00:04.6]} 56... Ke3
{[%clk 0:00:07.4]} 57. f4+ {[%clk 0:00:03.2]} 57... Kxf4 {[%clk 0:00:07.4]} 58.
Rf3+ {[%clk 0:00:03.8]} 58... Kg5 {[%clk 0:00:06.9]} 59. Kg3 {[%clk 0:00:04.1]}
59... Ra2 {[%clk 0:00:06.7]} 60. Ne4+ {[%clk 0:00:04.2]} 60... Kg6 {[%clk
0:00:07.1]} 61. Rf6+ {[%clk 0:00:04.2]} 61... Kg7 {[%clk 0:00:06.8]} 62. Rb6
{[%clk 0:00:03.8]} 62... Ra3+ {[%clk 0:00:06.3]} 63. Kf4 {[%clk 0:00:03.9]}
63... Ra1 {[%clk 0:00:07.2]} 64. Ke5 {[%clk 0:00:03.7]} 64... Ra5+ {[%clk
0:00:07]} 65. Kf4 {[%clk 0:00:03.2]} 65... Ra1 {[%clk 0:00:07.8]} 66. Ng3 {[%clk
0:00:02.7]} 66... Ra4+ {[%clk 0:00:06.1]} 67. Kg5 {[%clk 0:00:02.3]} 67... Ra1
{[%clk 0:00:05]} 68. Nf5+ {[%clk 0:00:03.2]} 68... Kf7 {[%clk 0:00:05.3]} 69.
Rf6+ {[%clk 0:00:02.2]} 69... Ke8 {[%clk 0:00:05]} 70. Re6+ {[%clk 0:00:02.4]}
70... Kd7 {[%clk 0:00:05.4]} 71. Kf6 {[%clk 0:00:03]} 71... Kc7 {[%clk
0:00:05.2]} 72. Re7+ {[%clk 0:00:03.1]} 72... Kc6 {[%clk 0:00:05.3]} 73. Re6+
{[%clk 0:00:03]} 73... Kd5 {[%clk 0:00:05.3]} 74. Rd6+ {[%clk 0:00:03.2]} 74...
Kc5 {[%clk 0:00:05.4]} 75. Rd8 {[%clk 0:00:03.4]} 75... Kc6 {[%clk 0:00:05.5]}
76. Nd4+ {[%clk 0:00:02.7]} 76... Kc7 {[%clk 0:00:04.6]} 77. Ne6+ {[%clk
0:00:02.9]} 77... Kc6 {[%clk 0:00:05.1]} 78. Ke7 {[%clk 0:00:03.3]} 78... Re1
{[%clk 0:00:04.3]} 79. Rd6+ {[%clk 0:00:03.4]} 79... Kb5 {[%clk 0:00:04.1]} 80.
Kd7 {[%clk 0:00:04.3]} 80... Kc4 {[%clk 0:00:04.3]} 81. Kc6 {[%clk 0:00:03.6]}
81... Kb3 {[%clk 0:00:03.6]} 82. Nd4+ {[%clk 0:00:03.4]} 82... Kb2 {[%clk
0:00:02.5]} 83. Kb5 {[%clk 0:00:03.1]} 83... Rh1 {[%clk 0:00:02.8]} 84. Kc4
{[%clk 0:00:03.2]} 84... Rh8 {[%clk 0:00:03.2]} 85. Rb6+ {[%clk 0:00:03.3]}
85... Ka2 {[%clk 0:00:02.8]} 86. Kc3 {[%clk 0:00:03.4]} 86... Rc8+ {[%clk
0:00:02.8]} 87. Kd3 {[%clk 0:00:03.9]} 87... Ka3 {[%clk 0:00:02.4]} 88. Nb5+
{[%clk 0:00:03.3]} 88... Ka4 {[%clk 0:00:01.8]} 89. Nd6 {[%clk 0:00:03.5]} 89...
Ka5 {[%clk 0:00:02.5]} 90. Nxc8 {[%clk 0:00:03]} 90... Ka4 {[%clk 0:00:02.8]}
91. Rb1 {[%clk 0:00:03.8]} 91... Ka3 {[%clk 0:00:03.2]} 92. Rc1 {[%clk
0:00:04.7]} 92... Ka2 {[%clk 0:00:04.1]} 93. Rh1 {[%clk 0:00:05.2]} 93... Kb3
{[%clk 0:00:05]} 94. Nd6 {[%clk 0:00:05.8]} 94... Kb4 {[%clk 0:00:05.9]} 95. Ne4
{[%clk 0:00:06.6]} 95... Kb3 {[%clk 0:00:05.7]} 96. Nc3 {[%clk 0:00:07.5]} 96...
Kb2 {[%clk 0:00:06.6]} 97. Rb1+ {[%clk 0:00:07.2]} 97... Ka3 {[%clk 0:00:06.7]}
98. Nd1 {[%clk 0:00:07.6]} 98... Ka2 {[%clk 0:00:06.8]} 99. Kc2 {[%clk
0:00:07.2]} 99... Ka3 {[%clk 0:00:06.9]} 100. Rb2 {[%clk 0:00:07.5]} 100... Ka4
{[%clk 0:00:07]} 101. Kc3 {[%clk 0:00:07.8]} 101... Ka5 {[%clk 0:00:07.9]} 1-0

[Event "*** Titled Tuesday Blitz"]
[Site "Chess.com"]
[Date "2021.03.09"]
[Round "9"]
[White "TimofeevAr"]
[Black "PaulfromSPb"]
[Result "1/2-1/2"]
[WhiteElo "2873"]
[BlackElo "2731"]
[TimeControl "180+1"]
[EndTime "11:51:05 PST"]
[Termination "Game drawn by 50-move rule"]

1. c4 {[%clk 0:03:00.9]} 1... e5 {[%clk 0:02:59.6]} 2. e3 {[%clk 0:03:00.4]}
2... Nc6 {[%clk 0:02:57.3]} 3. Nc3 {[%clk 0:02:59.7]} 3... Nf6 {[%clk
0:02:54.1]} 4. d3 {[%clk 0:02:59.3]} 4... Be7 {[%clk 0:02:52.2]} 5. Nf3 {[%clk
0:02:58.7]} 5... d5 {[%clk 0:02:50.3]} 6. cxd5 {[%clk 0:02:58.4]} 6... Nxd5
{[%clk 0:02:51.2]} 7. Be2 {[%clk 0:02:58.7]} 7... O-O {[%clk 0:02:49.6]} 8. O-O
{[%clk 0:02:58.6]} 8... Be6 {[%clk 0:02:47.6]} 9. a3 {[%clk 0:02:57.2]} 9... f5
{[%clk 0:02:45.3]} 10. Qc2 {[%clk 0:02:55.3]} 10... a6 {[%clk 0:02:44.8]} 11.
Rd1 {[%clk 0:02:37.8]} 11... Qe8 {[%clk 0:02:44.5]} 12. e4 {[%clk 0:02:28]}
12... Nxc3 {[%clk 0:02:41.9]} 13. bxc3 {[%clk 0:02:26.2]} 13... Qg6 {[%clk
0:02:41.7]} 14. Be3 {[%clk 0:02:10.7]} 14... Rad8 {[%clk 0:02:37.6]} 15. exf5
{[%clk 0:02:03.5]} 15... Qxf5 {[%clk 0:02:35.4]} 16. Nd2 {[%clk 0:02:01.5]}
16... Nd4 {[%clk 0:02:30.7]} 17. cxd4 {[%clk 0:01:57.9]} 17... exd4 {[%clk
0:02:31.6]} 18. Bxd4 {[%clk 0:01:57.6]} 18... Rxd4 {[%clk 0:02:32.5]} 19. Ne4
{[%clk 0:01:56.1]} 19... c5 {[%clk 0:02:16.9]} 20. Bf3 {[%clk 0:01:54.3]} 20...
Qg6 {[%clk 0:02:05.3]} 21. Qe2 {[%clk 0:01:53.6]} 21... b5 {[%clk 0:01:55.4]}
22. Re1 {[%clk 0:01:34.9]} 22... Bd5 {[%clk 0:01:50.1]} 23. Qe3 {[%clk 0:01:24]}
23... Bd8 {[%clk 0:01:43.9]} 24. g3 {[%clk 0:01:22.1]} 24... Bb6 {[%clk
0:01:39.1]} 25. Bg2 {[%clk 0:00:48.5]} 25... h6 {[%clk 0:01:33.8]} 26. Qe2
{[%clk 0:00:44.7]} 26... Qc6 {[%clk 0:01:27.3]} 27. Rac1 {[%clk 0:00:38.3]}
27... Kh8 {[%clk 0:01:23.5]} 28. h4 {[%clk 0:00:37.4]} 28... a5 {[%clk
0:01:19.2]} 29. Kh2 {[%clk 0:00:36.6]} 29... b4 {[%clk 0:01:17.9]} 30. axb4
{[%clk 0:00:36.7]} 30... axb4 {[%clk 0:01:18]} 31. f4 {[%clk 0:00:36.4]} 31...
b3 {[%clk 0:01:13.3]} 32. Rb1 {[%clk 0:00:32.2]} 32... Rb4 {[%clk 0:01:13]} 33.
Qh5 {[%clk 0:00:29.6]} 33... Rd4 {[%clk 0:01:06.4]} 34. Re3 {[%clk 0:00:26.2]}
34... c4 {[%clk 0:01:04.8]} 35. dxc4 {[%clk 0:00:20.7]} 35... Bxe4 {[%clk
0:01:03.3]} 36. Rxe4 {[%clk 0:00:21]} 36... Rxe4 {[%clk 0:01:03.4]} 37. Qf3
{[%clk 0:00:15.7]} 37... Rfe8 {[%clk 0:01:00.8]} 38. Rxb3 {[%clk 0:00:13.1]}
38... Qc5 {[%clk 0:00:58.8]} 39. Qxe4 {[%clk 0:00:12.3]} 39... Rxe4 {[%clk
0:00:57.2]} 40. Bxe4 {[%clk 0:00:13]} 40... Qxc4 {[%clk 0:00:54.2]} 41. Rxb6
{[%clk 0:00:12.4]} 41... Qxe4 {[%clk 0:00:51.7]} 42. Rb2 {[%clk 0:00:12.4]}
42... Kh7 {[%clk 0:00:48.4]} 43. Rf2 {[%clk 0:00:12.4]} 43... Kg6 {[%clk
0:00:46.2]} 44. f5+ {[%clk 0:00:12.5]} 44... Kf6 {[%clk 0:00:44.5]} 45. Kg1
{[%clk 0:00:12.8]} 45... Qd3 {[%clk 0:00:43.1]} 46. Kg2 {[%clk 0:00:13]} 46...
Qd5+ {[%clk 0:00:41.8]} 47. Kh2 {[%clk 0:00:13]} 47... Ke5 {[%clk 0:00:41.2]}
48. Kg1 {[%clk 0:00:12.7]} 48... Qd4 {[%clk 0:00:41]} 49. Kg2 {[%clk 0:00:12.8]}
49... Qe4+ {[%clk 0:00:40.8]} 50. Kh2 {[%clk 0:00:13.1]} 50... Qd4 {[%clk
0:00:38]} 51. Kg2 {[%clk 0:00:13.4]} 51... Qe3 {[%clk 0:00:37]} 52. Rf1 {[%clk
0:00:10.4]} 52... Qd3 {[%clk 0:00:35]} 53. Rf2 {[%clk 0:00:10.5]} 53... Qd5+
{[%clk 0:00:33.6]} 54. Kh2 {[%clk 0:00:10.5]} 54... Ke4 {[%clk 0:00:33.1]} 55.
f6 {[%clk 0:00:09.5]} 55... Qf7 {[%clk 0:00:30.8]} 56. Rf4+ {[%clk 0:00:09]}
56... Ke3 {[%clk 0:00:29.9]} 57. fxg7 {[%clk 0:00:09.3]} 57... Qxg7 {[%clk
0:00:30.8]} 58. Kg2 {[%clk 0:00:09.7]} 58... Qb2+ {[%clk 0:00:29.9]} 59. Kh3
{[%clk 0:00:09.7]} 59... Qd2 {[%clk 0:00:28.2]} 60. Rf7 {[%clk 0:00:09.1]} 60...
Qd5 {[%clk 0:00:26.3]} 61. Rf4 {[%clk 0:00:09]} 61... h5 {[%clk 0:00:25]} 62.
Kh2 {[%clk 0:00:08.8]} 62... Ke2 {[%clk 0:00:24.1]} 63. Kg1 {[%clk 0:00:08.4]}
63... Kd3 {[%clk 0:00:22.4]} 64. Kh2 {[%clk 0:00:07.8]} 64... Qa2+ {[%clk
0:00:22.6]} 65. Kg1 {[%clk 0:00:07.4]} 65... Qa1+ {[%clk 0:00:22.7]} 66. Kg2
{[%clk 0:00:07.6]} 66... Ke3 {[%clk 0:00:22.7]} 67. Rf3+ {[%clk 0:00:07.8]}
67... Ke4 {[%clk 0:00:23]} 68. Rf4+ {[%clk 0:00:08.2]} 68... Kd3 {[%clk
0:00:23.4]} 69. Rf3+ {[%clk 0:00:08.1]} 69... Kc4 {[%clk 0:00:23.1]} 70. Rf4+
{[%clk 0:00:08.5]} 70... Kd5 {[%clk 0:00:23]} 71. Kh2 {[%clk 0:00:08]} 71...
Qb2+ {[%clk 0:00:22.7]} 72. Kg1 {[%clk 0:00:08.1]} 72... Qc1+ {[%clk 0:00:23]}
73. Kg2 {[%clk 0:00:08.5]} 73... Qa1 {[%clk 0:00:22.3]} 74. Kh2 {[%clk
0:00:08.4]} 74... Ke5 {[%clk 0:00:21.4]} 75. Kg2 {[%clk 0:00:08.5]} 75... Qb2+
{[%clk 0:00:18.5]} 76. Kg1 {[%clk 0:00:08.6]} 76... Qe2 {[%clk 0:00:17.7]} 77.
Rf2 {[%clk 0:00:07.9]} 77... Qd1+ {[%clk 0:00:15.7]} 78. Kg2 {[%clk 0:00:08.3]}
78... Ke4 {[%clk 0:00:16.6]} 79. Rf4+ {[%clk 0:00:08.6]} 79... Kd3 {[%clk
0:00:15.5]} 80. Kh2 {[%clk 0:00:08.7]} 80... Ke3 {[%clk 0:00:14.2]} 81. Kg2
{[%clk 0:00:08.9]} 81... Qa1 {[%clk 0:00:13]} 82. Kh2 {[%clk 0:00:08.9]} 82...
Qb1 {[%clk 0:00:12.1]} 83. Kg2 {[%clk 0:00:09.1]} 83... Qb2+ {[%clk 0:00:10.9]}
84. Kg1 {[%clk 0:00:09]} 84... Qc1+ {[%clk 0:00:10.5]} 85. Kg2 {[%clk
0:00:09.3]} 85... Qd2+ {[%clk 0:00:10.6]} 86. Kg1 {[%clk 0:00:09.7]} 86... Qd5
{[%clk 0:00:06.1]} 87. Rf6 {[%clk 0:00:06.4]} 87... Qd4 {[%clk 0:00:04.8]} 88.
Rf4 {[%clk 0:00:06]} 88... Qc5 {[%clk 0:00:05.1]} 89. Kh2 {[%clk 0:00:05.4]}
89... Ke2 {[%clk 0:00:05.6]} 90. Kg2 {[%clk 0:00:05.8]} 90... Qc6+ {[%clk
0:00:05.9]} 91. Kh2 {[%clk 0:00:06.2]} 91... Qd7 {[%clk 0:00:06.5]} 92. Kg2
{[%clk 0:00:06.3]} 92... Qd5+ {[%clk 0:00:06.4]} 93. Kh2 {[%clk 0:00:06.7]}
93... Ke3 {[%clk 0:00:07.3]} 94. Kg1 {[%clk 0:00:06.3]} 94... Qg8 {[%clk
0:00:07.4]} 95. Kh2 {[%clk 0:00:06.5]} 95... Qc8 {[%clk 0:00:08.3]} 96. Kg2
{[%clk 0:00:06.3]} 96... Qa8+ {[%clk 0:00:08.5]} 97. Kg1 {[%clk 0:00:06.6]}
97... Ke2 {[%clk 0:00:09.3]} 98. Kh2 {[%clk 0:00:06.7]} 98... Qa3 {[%clk
0:00:09]} 99. Kg2 {[%clk 0:00:06.6]} 99... Qc5 {[%clk 0:00:08.3]} 100. Kh2
{[%clk 0:00:07]} 100... Qc8 {[%clk 0:00:07.4]} 101. Kg2 {[%clk 0:00:07.3]}
101... Ke3 {[%clk 0:00:07.9]} 102. Rf3+ {[%clk 0:00:07.1]} 102... Kd2 {[%clk
0:00:08.1]} 103. Rf2+ {[%clk 0:00:07.5]} 103... Kd3 {[%clk 0:00:09]} 104. Rf3+
{[%clk 0:00:08]} 104... Ke4 {[%clk 0:00:09.4]} 105. Rf4+ {[%clk 0:00:08.5]}
105... Ke5 {[%clk 0:00:09.5]} 106. Kh2 {[%clk 0:00:09]} 106... Qc6 {[%clk
0:00:09.3]} 107. Kg1 {[%clk 0:00:09]} 107... Qg6 {[%clk 0:00:09.9]} 108. Kg2
{[%clk 0:00:09.2]} 108... Qd3 {[%clk 0:00:09.6]} 109. Kh2 {[%clk 0:00:09.2]}
109... Qe2+ {[%clk 0:00:10]} 110. Kg1 {[%clk 0:00:09.5]} 110... Qd2 {[%clk
0:00:09.6]} 111. Rf2 {[%clk 0:00:08.3]} 111... Qd4 {[%clk 0:00:07.3]} 1/2-1/2

[Event "*** Titled Tuesday Blitz"]
[Site "Chess.com"]
[Date "2021.03.09"]
[Round "10"]
[White "LionChessClub"]
[Black "iturrizaga"]
[Result "0-1"]
[WhiteElo "2606"]
[BlackElo "2819"]
[TimeControl "180+1"]
[EndTime "11:53:37 PST"]
[Termination "iturrizaga won by resignation"]

1. e4 {[%clk 0:03:00.9]} 1... c5 {[%clk 0:02:59]} 2. Nc3 {[%clk 0:03:00.5]} 2...
Nc6 {[%clk 0:02:59.9]} 3. Bb5 {[%clk 0:02:58.2]} 3... Nd4 {[%clk 0:02:59.9]} 4.
Bc4 {[%clk 0:02:57.2]} 4... e6 {[%clk 0:03:00.5]} 5. Nge2 {[%clk 0:02:55.9]}
5... a6 {[%clk 0:03:01.4]} 6. O-O {[%clk 0:02:53.9]} 6... b5 {[%clk 0:03:01.2]}
7. Bd3 {[%clk 0:02:54.1]} 7... Nc6 {[%clk 0:02:58]} 8. Ng3 {[%clk 0:02:54.1]}
8... Bb7 {[%clk 0:02:58.2]} 9. Re1 {[%clk 0:02:53]} 9... h5 {[%clk 0:02:57.7]}
10. h3 {[%clk 0:02:41.1]} 10... h4 {[%clk 0:02:55.7]} 11. Nf1 {[%clk 0:02:41.3]}
11... Bd6 {[%clk 0:02:55.6]} 12. Nd5 {[%clk 0:02:37]} 12... exd5 {[%clk
0:02:50.4]} 13. exd5+ {[%clk 0:02:37.9]} 13... Nce7 {[%clk 0:02:50.6]} 14. Ne3
{[%clk 0:02:28.1]} 14... Kf8 {[%clk 0:02:50.1]} 15. Qf3 {[%clk 0:02:27]} 15...
Nf6 {[%clk 0:02:48.8]} 0-1

[Event "*** Titled Tuesday Blitz"]
[Site "Chess.com"]
[Date "2021.03.09"]
[Round "10"]
[White "Leo_C"]
[Black "kidagent"]
[Result "1-0"]
[WhiteElo "2440"]
[BlackElo "2320"]
[TimeControl "180+1"]
[EndTime "11:54:59 PST"]
[Termination "Leo_C won by resignation"]

1. d4 {[%clk 0:03:00.9]} 1... d5 {[%clk 0:02:59.7]} 2. c4 {[%clk 0:02:59.6]}
2... c6 {[%clk 0:03:00.1]} 3. Nc3 {[%clk 0:02:58.9]} 3... dxc4 {[%clk
0:03:00.1]} 4. e4 {[%clk 0:02:55.5]} 4... b5 {[%clk 0:03:00.3]} 5. a4 {[%clk
0:02:54.4]} 5... b4 {[%clk 0:02:59.7]} 6. Nce2 {[%clk 0:02:54.4]} 6... e5 {[%clk
0:02:56.5]} 7. Nf3 {[%clk 0:02:10.9]} 7... Nf6 {[%clk 0:02:45.5]} 8. Ng3 {[%clk
0:02:03.6]} 8... exd4 {[%clk 0:02:40]} 9. Bxc4 {[%clk 0:01:58.8]} 9... Bg4
{[%clk 0:02:38.3]} 10. Bxf7+ {[%clk 0:01:54.1]} 10... Kxf7 {[%clk 0:02:30.8]}
11. Ne5+ {[%clk 0:01:53.4]} 11... Ke8 {[%clk 0:02:17.8]} 12. Nxg4 {[%clk
0:01:52.2]} 12... Bc5 {[%clk 0:02:04.9]} 13. Nxf6+ {[%clk 0:01:43.9]} 13... Qxf6
{[%clk 0:02:04]} 14. Qh5+ {[%clk 0:01:43.5]} 1-0

[Event "*** Titled Tuesday Blitz"]
[Site "Chess.com"]
[Date "2021.03.09"]
[Round "10"]
[White "mbojan"]
[Black "redblizzard"]
[Result "1-0"]
[WhiteElo "2619"]
[BlackElo "2475"]
[TimeControl "180+1"]
[EndTime "11:55:03 PST"]
[Termination "mbojan won by resignation"]

1. Nf3 {[%clk 0:03:00.9]} 1... Nf6 {[%clk 0:02:58.4]} 2. Ng1 {[%clk 0:03:01.8]}
2... g6 {[%clk 0:02:57.4]} 3. Nf3 {[%clk 0:03:02.7]} 3... Bg7 {[%clk 0:02:57.6]}
4. Ng1 {[%clk 0:03:03.6]} 4... O-O {[%clk 0:02:57.7]} 5. Nf3 {[%clk 0:03:04.5]}
5... d5 {[%clk 0:02:57.8]} 6. Ng1 {[%clk 0:03:05.4]} 6... e5 {[%clk 0:02:58]} 7.
g3 {[%clk 0:03:06]} 7... e4 {[%clk 0:02:57.5]} 8. Bg2 {[%clk 0:03:06.3]} 8... c5
{[%clk 0:02:57.3]} 9. d3 {[%clk 0:03:06.7]} 9... exd3 {[%clk 0:02:56]} 10. cxd3
{[%clk 0:03:06.7]} 10... Nc6 {[%clk 0:02:56.4]} 11. Nf3 {[%clk 0:03:06.7]} 11...
Re8 {[%clk 0:02:56.3]} 12. O-O {[%clk 0:03:07.2]} 12... d4 {[%clk 0:02:42.7]}
13. Bg5 {[%clk 0:03:04.6]} 13... h6 {[%clk 0:02:40.8]} 14. Bxf6 {[%clk
0:03:03.8]} 14... Qxf6 {[%clk 0:02:41.7]} 15. Nbd2 {[%clk 0:03:03.3]} 15... b6
{[%clk 0:02:38.7]} 16. a3 {[%clk 0:02:59.7]} 16... Bb7 {[%clk 0:02:38.2]} 17.
Rc1 {[%clk 0:02:59.4]} 17... a5 {[%clk 0:02:18]} 18. Nc4 {[%clk 0:02:53.4]}
18... Qd8 {[%clk 0:02:01.3]} 19. Qb3 {[%clk 0:02:41.7]} 19... Ra6 {[%clk
0:01:58.4]} 20. Rfe1 {[%clk 0:02:38.5]} 20... a4 {[%clk 0:01:50.3]} 21. Qd1
{[%clk 0:02:32.5]} 21... b5 {[%clk 0:01:45.1]} 22. Ncd2 {[%clk 0:02:30.9]} 22...
Bf8 {[%clk 0:01:42]} 23. Ne4 {[%clk 0:02:30.9]} 23... Qd5 {[%clk 0:01:38.9]} 24.
Nf6+ {[%clk 0:02:29.5]} 1-0

[Event "*** Titled Tuesday Blitz"]
[Site "Chess.com"]
[Date "2021.03.09"]
[Round "10"]
[White "mr65"]
[Black "Sychev_Klementy"]
[Result "0-1"]
[WhiteElo "2122"]
[BlackElo "2836"]
[TimeControl "180+1"]
[EndTime "11:55:10 PST"]
[Termination "Sychev_Klementy won by resignation"]

1. e4 {[%clk 0:03:00.9]} 1... Nf6 {[%clk 0:03:00.9]} 2. e5 {[%clk 0:03:00.5]}
2... Nd5 {[%clk 0:03:00.7]} 3. d4 {[%clk 0:03:00.7]} 3... d6 {[%clk 0:02:59.5]}
4. Nf3 {[%clk 0:03:01.2]} 4... dxe5 {[%clk 0:02:53.7]} 5. Nxe5 {[%clk
0:03:00.2]} 5... g6 {[%clk 0:02:54.1]} 6. Bc4 {[%clk 0:02:57.8]} 6... c6 {[%clk
0:02:49]} 7. O-O {[%clk 0:02:55.9]} 7... Bg7 {[%clk 0:02:48.6]} 8. Nc3 {[%clk
0:02:51.4]} 8... O-O {[%clk 0:02:47.1]} 9. Re1 {[%clk 0:02:46.9]} 9... Be6
{[%clk 0:02:46.2]} 10. Nxd5 {[%clk 0:02:41.8]} 10... Bxd5 {[%clk 0:02:44.2]} 11.
Bxd5 {[%clk 0:02:41.2]} 11... Qxd5 {[%clk 0:02:41.1]} 12. c4 {[%clk 0:02:40.3]}
12... Qd8 {[%clk 0:02:38.4]} 13. Nf3 {[%clk 0:02:34.1]} 13... Na6 {[%clk
0:02:36]} 14. Bg5 {[%clk 0:02:31.5]} 14... Re8 {[%clk 0:02:35.6]} 15. Qe2 {[%clk
0:02:28.6]} 15... Qd7 {[%clk 0:02:34.7]} 16. Rad1 {[%clk 0:02:27.6]} 16... Nc7
{[%clk 0:02:34.8]} 17. Ne5 {[%clk 0:02:20.2]} 17... Qf5 {[%clk 0:02:33.5]} 18.
Bh4 {[%clk 0:02:06.2]} 18... Rad8 {[%clk 0:02:31.9]} 19. Qe4 {[%clk 0:02:01.7]}
19... Qxe4 {[%clk 0:02:23.9]} 20. Rxe4 {[%clk 0:02:00.4]} 20... g5 {[%clk
0:02:24.5]} 21. Bg3 {[%clk 0:01:53.7]} 21... f5 {[%clk 0:02:23.4]} 22. Ree1
{[%clk 0:01:41.2]} 22... f4 {[%clk 0:02:21.6]} 0-1

[Event "*** Titled Tuesday Blitz"]
[Site "Chess.com"]
[Date "2021.03.09"]
[Round "10"]
[White "thechesscorner64"]
[Black "cukin84"]
[Result "1-0"]
[WhiteElo "2348"]
[BlackElo "2110"]
[TimeControl "180+1"]
[EndTime "11:55:17 PST"]
[Termination "thechesscorner64 won by resignation"]

1. e4 {[%clk 0:03:00.9]} 1... c6 {[%clk 0:02:59.5]} 2. d4 {[%clk 0:02:59.7]}
2... d5 {[%clk 0:02:59.7]} 3. exd5 {[%clk 0:03:00.6]} 3... cxd5 {[%clk
0:02:59.5]} 4. c4 {[%clk 0:03:01.5]} 4... Nf6 {[%clk 0:02:58.8]} 5. Nc3 {[%clk
0:03:02]} 5... Nc6 {[%clk 0:02:58.9]} 6. Nf3 {[%clk 0:03:01.1]} 6... Bg4 {[%clk
0:02:58.4]} 7. cxd5 {[%clk 0:03:00.6]} 7... Nxd5 {[%clk 0:02:58]} 8. Qb3 {[%clk
0:03:01.2]} 8... Bxf3 {[%clk 0:02:55.4]} 9. gxf3 {[%clk 0:03:02.1]} 9... e6
{[%clk 0:02:55.6]} 10. Qxb7 {[%clk 0:03:01.1]} 10... Nxd4 {[%clk 0:02:54.9]} 11.
Bb5+ {[%clk 0:03:01.7]} 11... Nxb5 {[%clk 0:02:54.2]} 12. Qc6+ {[%clk
0:03:02.2]} 12... Ke7 {[%clk 0:02:52.6]} 13. Qxb5 {[%clk 0:03:02.2]} 13... Nxc3
{[%clk 0:02:51.8]} 14. bxc3 {[%clk 0:03:02.6]} 14... Rb8 {[%clk 0:02:50]} 15.
Qc5+ {[%clk 0:02:57.1]} 15... Ke8 {[%clk 0:02:45.4]} 16. Qxa7 {[%clk 0:02:53.7]}
16... Bd6 {[%clk 0:02:30.1]} 17. Be3 {[%clk 0:02:43.5]} 17... Qf6 {[%clk
0:02:27.5]} 18. Qa4+ {[%clk 0:02:27.6]} 18... Kf8 {[%clk 0:02:26.3]} 19. Qd4
{[%clk 0:02:21.6]} 19... Qxf3 {[%clk 0:02:23]} 20. Qxd6+ {[%clk 0:02:20.9]}
20... Ke8 {[%clk 0:02:19.7]} 21. Qxb8+ {[%clk 0:02:18.6]} 21... Ke7 {[%clk
0:02:19.6]} 22. Qc7+ {[%clk 0:02:15.6]} 22... Ke8 {[%clk 0:02:03.5]} 23. Rg1
{[%clk 0:02:05.1]} 23... g6 {[%clk 0:02:01.6]} 24. Rd1 {[%clk 0:02:01.8]} 1-0